[Event "Titled Tuesday Blitz February 15 Early 2022"]
[White "Lakshmi C"]
[Black "Aradhya, Garg"]
[WhiteFideId "25035347"]
[BlackFideId "25006746"]
[WhiteElo "1775"]
[BlackElo "2169"]
[Result "0-1"]
[Round "01"]
[TimeControl "180+1"]
[Date "2022.02.15"]
[WhiteClock "0:00:28"]
[BlackClock "0:00:06"]

1. e4 {[%clk 0:02:57]}  e5 {[%clk 0:02:59]} 2. Nf3 {[%clk 0:02:55]}  Nc6 {[%clk 0:02:59]} 3. Bb5 {[%clk 0:02:51]}  a6 {[%clk 0:02:58]} 4. Ba4 {[%clk 0:02:51]}  Bc5 {[%clk 0:02:57]} 5. O-O {[%clk 0:02:51]}  Nge7 {[%clk 0:02:56]} 6. c3 {[%clk 0:02:51]}  Ng6 {[%clk 0:02:56]} 7. d4 {[%clk 0:02:51]}  Ba7 {[%clk 0:02:56]} 8. Bg5 {[%clk 0:02:50]}  f6 {[%clk 0:02:56]} 9. Be3 {[%clk 0:02:50]}  O-O {[%clk 0:02:53]} 10. Bb3+ {[%clk 0:02:49]}  Kh8 {[%clk 0:02:52]} 11. Nbd2 {[%clk 0:02:46]}  d6 {[%clk 0:02:52]} 12. h3 {[%clk 0:02:46]}  Qe8 {[%clk 0:02:32]} 13. Re1 {[%clk 0:02:42]}  Nd8 {[%clk 0:02:32]} 14. Nf1 {[%clk 0:02:41]}  Ne6 {[%clk 0:02:32]} 15. Ng3 {[%clk 0:02:40]}  Nef4 {[%clk 0:02:32]} 16. Bd2 {[%clk 0:02:41]}  Be6 {[%clk 0:01:46]} 17. Bc2 {[%clk 0:02:39]}  Qd7 {[%clk 0:01:40]} 18. Nf5 {[%clk 0:02:34]}  Bxf5 {[%clk 0:01:38]} 19. exf5 {[%clk 0:02:34]}  Ne7 {[%clk 0:01:39]} 20. Bxf4 {[%clk 0:02:34]}  exf4 {[%clk 0:01:38]} 21. Qd3 {[%clk 0:02:34]}  d5 {[%clk 0:01:34]} 22. Re6 {[%clk 0:02:34]}  Rae8 {[%clk 0:01:33]} 23. Rae1 {[%clk 0:02:34]}  c6 {[%clk 0:01:33]} 24. Qd2 {[%clk 0:02:34]}  Bb8 {[%clk 0:01:32]} 25. Nh2 {[%clk 0:02:34]}  Nc8 {[%clk 0:00:36]} 26. Qe2 {[%clk 0:02:25]}  Rxe6 {[%clk 0:00:36]} 27. fxe6 {[%clk 0:02:25]}  Qe8 {[%clk 0:00:34]} 28. Qg4 {[%clk 0:02:24]}  Ne7 {[%clk 0:00:33]} 29. Nf3 {[%clk 0:02:24]}  g5 {[%clk 0:00:26]} 30. Nd2 {[%clk 0:01:41]}  Kg7 {[%clk 0:00:23]} 31. h4 {[%clk 0:01:40]}  h5 {[%clk 0:00:23]} 32. Qf3 {[%clk 0:01:39]}  g4 {[%clk 0:00:21]} 33. Qd3 {[%clk 0:01:39]}  Qg6 {[%clk 0:00:21]} 34. Qxg6+ {[%clk 0:01:16]}  Nxg6 {[%clk 0:00:22]} 35. Nb3 {[%clk 0:01:16]}  b6 {[%clk 0:00:21]} 36. Bd3 {[%clk 0:01:09]}  a5 {[%clk 0:00:20]} 37. c4 {[%clk 0:01:09]}  Ne7 {[%clk 0:00:19]} 38. c5 {[%clk 0:01:06]}  a4 {[%clk 0:00:18]} 39. Nd2 {[%clk 0:01:06]}  b5 {[%clk 0:00:19]} 40. b3 {[%clk 0:01:05]}  a3 {[%clk 0:00:17]} 41. b4 {[%clk 0:01:05]}  Bc7 {[%clk 0:00:17]} 42. Kh2 {[%clk 0:01:02]}  f5 {[%clk 0:00:16]} 43. f3 {[%clk 0:00:58]}  Kf6 {[%clk 0:00:15]} 44. Nb1 {[%clk 0:00:54]}  Ra8 {[%clk 0:00:14]} 45. Nc3 {[%clk 0:00:53]}  Ng6 {[%clk 0:00:14]} 46. Bxb5 {[%clk 0:00:48]}  gxf3 {[%clk 0:00:09]} 47. Bxc6 {[%clk 0:00:47]}  f2 {[%clk 0:00:10]} 48. Rf1 {[%clk 0:00:47]}  f3+ {[%clk 0:00:10]} 49. Kh1 {[%clk 0:00:46]}  Nxh4 {[%clk 0:00:09]} 50. gxf3 {[%clk 0:00:45]}  Ra7 {[%clk 0:00:04]} 51. Bxd5 {[%clk 0:00:44]}  Bg3 {[%clk 0:00:03]} 52. Nd1 {[%clk 0:00:43]}  Rg7 {[%clk 0:00:03]} 53. Nxf2 {[%clk 0:00:42]}  Bxf2 {[%clk 0:00:03]} 54. Rxf2 {[%clk 0:00:42]}  f4 {[%clk 0:00:04]} 55. Rh2 {[%clk 0:00:42]}  Nf5 {[%clk 0:00:04]} 56. Rg2 {[%clk 0:00:42]}  Rxg2 {[%clk 0:00:03]} 57. Kxg2 {[%clk 0:00:42]}  Ne3+ {[%clk 0:00:04]} 58. Kf2 {[%clk 0:00:39]}  Nxd5 {[%clk 0:00:05]} 59. b5 {[%clk 0:00:38]}  Kxe6 {[%clk 0:00:05]} 60. b6 {[%clk 0:00:37]}  Kd7 {[%clk 0:00:05]} 61. Kg2 {[%clk 0:00:32]}  Kc6 {[%clk 0:00:04]} 62. Kh3 {[%clk 0:00:32]}  Nb4 {[%clk 0:00:04]} 63. Kh4 {[%clk 0:00:31]}  Nxa2 {[%clk 0:00:04]} 64. d5+ {[%clk 0:00:30]}  Kb7 {[%clk 0:00:05]} 65. d6 {[%clk 0:00:29]}  Kc6 {[%clk 0:00:04]} 66. d7 {[%clk 0:00:29]}  Kxd7 {[%clk 0:00:05]} 67. b7 {[%clk 0:00:28]}  Kc7 {[%clk 0:00:05]} 68. c6 {[%clk 0:00:28]}  Nb4 {[%clk 0:00:04]} 69. Kxh5 {[%clk 0:00:28]}  Nxc6 {[%clk 0:00:05]} 70. Kg4 {[%clk 0:00:28]}  a2 {[%clk 0:00:05]} 71. Kxf4 {[%clk 0:00:28]}  a1=Q {[%clk 0:00:06]} 0-1


[Site "https://www.chess.com"]

[Event "Titled Tuesday Blitz February 15 Early 2022"]
[White "Leve, Nitai"]
[Black "Mischuk, Dmitry"]
[WhiteFideId "2006898"]
[BlackFideId "14118734"]
[WhiteElo "2144"]
[BlackElo "2256"]
[Result "0-1"]
[Round "01"]
[TimeControl "180+1"]
[Date "2022.02.15"]
[WhiteClock "0:00:03"]
[BlackClock "0:00:03"]

1. e4 {[%clk 0:03:00]}  c5 {[%clk 0:02:59]} 2. Nf3 {[%clk 0:02:57]}  Nc6 {[%clk 0:02:58]} 3. d4 {[%clk 0:02:57]}  cxd4 {[%clk 0:02:59]} 4. Nxd4 {[%clk 0:02:57]}  g6 {[%clk 0:02:58]} 5. Nc3 {[%clk 0:02:57]}  Bg7 {[%clk 0:02:58]} 6. Be3 {[%clk 0:02:58]}  Nf6 {[%clk 0:02:58]} 7. Be2 {[%clk 0:02:58]}  d5 {[%clk 0:02:49]} 8. Nxc6 {[%clk 0:02:48]}  bxc6 {[%clk 0:02:48]} 9. e5 {[%clk 0:02:46]}  Nd7 {[%clk 0:02:39]} 10. f4 {[%clk 0:02:45]}  O-O {[%clk 0:02:32]} 11. O-O {[%clk 0:02:39]}  e6 {[%clk 0:02:32]} 12. b4 {[%clk 0:02:33]}  f6 {[%clk 0:02:24]} 13. b5 {[%clk 0:02:25]}  cxb5 {[%clk 0:01:55]} 14. Nxd5 {[%clk 0:02:25]}  fxe5 {[%clk 0:01:41]} 15. fxe5 {[%clk 0:02:14]}  Rxf1+ {[%clk 0:01:40]} 16. Bxf1 {[%clk 0:02:15]}  Nxe5 {[%clk 0:01:36]} 17. Nc3 {[%clk 0:02:02]}  Qxd1 {[%clk 0:01:07]} 18. Rxd1 {[%clk 0:02:03]}  a6 {[%clk 0:01:04]} 19. Rd8+ {[%clk 0:02:02]}  Kf7 {[%clk 0:01:03]} 20. Ne4 {[%clk 0:02:03]}  Bf8 {[%clk 0:00:25]} 21. Bf4 {[%clk 0:01:12]}  Nc6 {[%clk 0:00:24]} 22. Nd6+ {[%clk 0:00:57]}  Bxd6 {[%clk 0:00:23]} 23. Rxd6 {[%clk 0:00:58]}  Ne7 {[%clk 0:00:19]} 24. Rd8 {[%clk 0:00:50]}  Bb7 {[%clk 0:00:14]} 25. Rd7 {[%clk 0:00:50]}  Bc6 {[%clk 0:00:09]} 26. Rc7 {[%clk 0:00:49]}  Rc8 {[%clk 0:00:10]} 27. Ra7 {[%clk 0:00:49]}  Ra8 {[%clk 0:00:05]} 28. Rc7 {[%clk 0:00:45]}  Rc8 {[%clk 0:00:04]} 29. Ra7 {[%clk 0:00:39]}  Bd5 {[%clk 0:00:02]} 30. Bd6 {[%clk 0:00:35]}  Re8 {[%clk 0:00:02]} 31. Rxa6 {[%clk 0:00:32]}  Kf6 {[%clk 0:00:01]} 32. Bxb5 {[%clk 0:00:31]}  Rc8 {[%clk 0:00:02]} 33. Bd3 {[%clk 0:00:26]}  Nf5 {[%clk 0:00:02]} 34. Bf4 {[%clk 0:00:23]}  g5 {[%clk 0:00:02]} 35. Bd2 {[%clk 0:00:22]}  h5 {[%clk 0:00:02]} 36. a4 {[%clk 0:00:18]}  Nd4 {[%clk 0:00:02]} 37. c3 {[%clk 0:00:06]}  Nb3 {[%clk 0:00:03]} 38. Be1 {[%clk 0:00:05]}  Nc5 {[%clk 0:00:03]} 39. Be2 {[%clk 0:00:04]}  Nxa6 {[%clk 0:00:03]} 40. Bxa6 {[%clk 0:00:04]}  Ra8 {[%clk 0:00:03]} 41. Bb5 {[%clk 0:00:05]}  Ke5 {[%clk 0:00:03]} 42. c4 {[%clk 0:00:05]}  Be4 {[%clk 0:00:03]} 43. Bc3+ {[%clk 0:00:06]}  Kf5 {[%clk 0:00:03]} 44. a5 {[%clk 0:00:06]}  Bb7 {[%clk 0:00:02]} 45. c5 {[%clk 0:00:06]}  Ba6 {[%clk 0:00:02]} 46. Bc6 {[%clk 0:00:05]}  Rc8 {[%clk 0:00:02]} 47. Bf3 {[%clk 0:00:03]}  Rxc5 {[%clk 0:00:02]} 48. Bd4 {[%clk 0:00:03]}  Rc1+ {[%clk 0:00:02]} 49. Kf2 {[%clk 0:00:03]}  g4 {[%clk 0:00:03]} 0-1


[Site "https://www.chess.com"]

[Event "Titled Tuesday Blitz February 15 Early 2022"]
[White "Lewtak, Damian"]
[Black "Lopez Mulet, Inigo"]
[WhiteFideId "1141724"]
[BlackFideId "22235620"]
[WhiteElo "2361"]
[BlackElo "2315"]
[Result "1-0"]
[Round "01"]
[TimeControl "180+1"]
[Date "2022.02.15"]
[WhiteClock "0:00:12"]
[BlackClock "0:00:13"]

1. e4 {[%clk 0:02:57]}  c5 {[%clk 0:02:59]} 2. Nf3 {[%clk 0:02:56]}  g6 {[%clk 0:02:59]} 3. g3 {[%clk 0:02:53]}  Bg7 {[%clk 0:02:56]} 4. Nc3 {[%clk 0:02:52]}  Nc6 {[%clk 0:02:55]} 5. Bg2 {[%clk 0:02:52]}  d6 {[%clk 0:02:54]} 6. O-O {[%clk 0:02:52]}  h5 {[%clk 0:02:53]} 7. Re1 {[%clk 0:02:50]}  Bg4 {[%clk 0:02:52]} 8. h3 {[%clk 0:02:48]}  Bxf3 {[%clk 0:02:49]} 9. Bxf3 {[%clk 0:02:48]}  h4 {[%clk 0:02:49]} 10. g4 {[%clk 0:02:44]}  e6 {[%clk 0:02:48]} 11. d3 {[%clk 0:02:43]}  Nge7 {[%clk 0:02:47]} 12. Bg2 {[%clk 0:02:43]}  a6 {[%clk 0:02:44]} 13. Be3 {[%clk 0:02:43]}  b5 {[%clk 0:02:44]} 14. Qd2 {[%clk 0:02:40]}  Qa5 {[%clk 0:02:42]} 15. Bg5 {[%clk 0:02:24]}  Bd4 {[%clk 0:02:33]} 16. Red1 {[%clk 0:02:01]}  f6 {[%clk 0:02:21]} 17. Bf4 {[%clk 0:01:58]}  O-O-O {[%clk 0:02:18]} 18. a3 {[%clk 0:01:49]}  g5 {[%clk 0:02:18]} 19. Be3 {[%clk 0:01:47]}  Ng6 {[%clk 0:02:16]} 20. b4 {[%clk 0:01:47]}  Qb6 {[%clk 0:02:05]} 21. bxc5 {[%clk 0:01:41]}  dxc5 {[%clk 0:02:05]} 22. Rab1 {[%clk 0:01:38]}  Rd7 {[%clk 0:01:53]} 23. e5 {[%clk 0:01:26]}  Ncxe5 {[%clk 0:01:48]} 24. Ne4 {[%clk 0:01:25]}  Rf8 {[%clk 0:01:28]} 25. c3 {[%clk 0:01:13]}  Bxe3 {[%clk 0:01:28]} 26. Qxe3 {[%clk 0:01:14]}  Nf4 {[%clk 0:01:21]} 27. Nxf6 {[%clk 0:01:08]}  Rxf6 {[%clk 0:01:13]} 28. Qxe5 {[%clk 0:01:08]}  Rdf7 {[%clk 0:01:13]} 29. Bf1 {[%clk 0:01:02]}  Qc6 {[%clk 0:01:08]} 30. Qxg5 {[%clk 0:00:51]}  Qf3 {[%clk 0:01:01]} 31. Qxc5+ {[%clk 0:00:43]}  Rc7 {[%clk 0:01:00]} 32. Qe3 {[%clk 0:00:42]}  Qd5 {[%clk 0:00:55]} 33. c4 {[%clk 0:00:40]}  Qb7 {[%clk 0:00:45]} 34. cxb5 {[%clk 0:00:40]}  axb5 {[%clk 0:00:46]} 35. Rdc1 {[%clk 0:00:39]}  Rxc1 {[%clk 0:00:42]} 36. Rxc1+ {[%clk 0:00:40]}  Kd8 {[%clk 0:00:33]} 37. Qe5 {[%clk 0:00:39]}  Rf7 {[%clk 0:00:27]} 38. Qd6+ {[%clk 0:00:39]}  Ke8 {[%clk 0:00:27]} 39. d4 {[%clk 0:00:29]}  Qd7 {[%clk 0:00:15]} 40. Bxb5 {[%clk 0:00:21]}  Nxh3+ {[%clk 0:00:14]} 41. Kh1 {[%clk 0:00:20]}  Nxf2+ {[%clk 0:00:14]} 42. Kg2 {[%clk 0:00:20]}  h3+ {[%clk 0:00:14]} 43. Kh2 {[%clk 0:00:18]}  Nxg4+ {[%clk 0:00:15]} 44. Kg3 {[%clk 0:00:18]}  Rf3+ {[%clk 0:00:14]} 45. Kxf3 {[%clk 0:00:17]}  Qxb5 {[%clk 0:00:14]} 46. Rc8+ {[%clk 0:00:16]}  Kf7 {[%clk 0:00:15]} 47. Qf8+ {[%clk 0:00:15]}  Kg6 {[%clk 0:00:15]} 48. Qg8+ {[%clk 0:00:14]}  Kh6 {[%clk 0:00:14]} 49. Qh8+ {[%clk 0:00:12]}  Kg6 {[%clk 0:00:14]} 50. Rg8+ {[%clk 0:00:12]}  Kf7 {[%clk 0:00:13]} 51. Qg7# {[%clk 0:00:12]} 1-0


[Site "https://www.chess.com"]

[Event "Titled Tuesday Blitz February 15 Early 2022"]
[White "Loy, Konstantin"]
[Black "Orozbaev, Eldiar"]
[WhiteFideId "14122499"]
[BlackFideId "13802240"]
[WhiteElo "2084"]
[BlackElo "2050"]
[Result "1-0"]
[Round "01"]
[TimeControl "180+1"]
[Date "2022.02.15"]
[WhiteClock "0:00:11"]
[BlackClock "0:00:04"]

1. e4 {[%clk 0:02:53]}  e6 {[%clk 0:02:58]} 2. d3 {[%clk 0:02:53]}  d5 {[%clk 0:02:58]} 3. Nd2 {[%clk 0:02:53]}  Nc6 {[%clk 0:02:57]} 4. Ngf3 {[%clk 0:02:52]}  Bc5 {[%clk 0:02:57]} 5. c3 {[%clk 0:02:49]}  a5 {[%clk 0:02:52]} 6. d4 {[%clk 0:02:40]}  Bb6 {[%clk 0:02:48]} 7. e5 {[%clk 0:02:40]}  f6 {[%clk 0:02:48]} 8. exf6 {[%clk 0:02:39]}  Nxf6 {[%clk 0:02:48]} 9. Bd3 {[%clk 0:02:39]}  O-O {[%clk 0:02:48]} 10. O-O {[%clk 0:02:39]}  Bd7 {[%clk 0:02:43]} 11. Re1 {[%clk 0:02:38]}  Qe8 {[%clk 0:02:35]} 12. Ne5 {[%clk 0:02:32]}  Nxe5 {[%clk 0:02:30]} 13. Rxe5 {[%clk 0:02:33]}  c5 {[%clk 0:02:26]} 14. Nf3 {[%clk 0:02:27]}  Bc7 {[%clk 0:02:13]} 15. Re1 {[%clk 0:02:24]}  c4 {[%clk 0:02:03]} 16. Bc2 {[%clk 0:02:19]}  Qh5 {[%clk 0:01:33]} 17. Ne5 {[%clk 0:01:53]}  Qxd1 {[%clk 0:00:51]} 18. Bxd1 {[%clk 0:01:52]}  Rae8 {[%clk 0:00:33]} 19. Bf3 {[%clk 0:01:26]}  Bc6 {[%clk 0:00:27]} 20. Bf4 {[%clk 0:01:13]}  Nd7 {[%clk 0:00:17]} 21. Bg3 {[%clk 0:00:54]}  Nxe5 {[%clk 0:00:16]} 22. Bxe5 {[%clk 0:00:54]}  Bxe5 {[%clk 0:00:16]} 23. Rxe5 {[%clk 0:00:55]}  Rf6 {[%clk 0:00:13]} 24. Rae1 {[%clk 0:00:53]}  Kf7 {[%clk 0:00:12]} 25. Bh5+ {[%clk 0:00:36]}  g6 {[%clk 0:00:11]} 26. Bd1 {[%clk 0:00:37]}  b5 {[%clk 0:00:10]} 27. a3 {[%clk 0:00:21]}  Rb8 {[%clk 0:00:10]} 28. Bg4 {[%clk 0:00:17]}  Bd7 {[%clk 0:00:11]} 29. Ra1 {[%clk 0:00:15]}  Ke7 {[%clk 0:00:10]} 30. g3 {[%clk 0:00:13]}  Kd6 {[%clk 0:00:10]} 31. f4 {[%clk 0:00:12]}  Rb6 {[%clk 0:00:05]} 32. h4 {[%clk 0:00:12]}  Rf8 {[%clk 0:00:05]} 33. Kf2 {[%clk 0:00:12]}  Rfb8 {[%clk 0:00:04]} 34. Rae1 {[%clk 0:00:11]} 1-0


[Site "https://www.chess.com"]

[Event "Titled Tuesday Blitz February 15 Early 2022"]
[White "Magallanes, Rey Jomar"]
[Black "Ianov, Viktor"]
[WhiteFideId "5205948"]
[BlackFideId "14102730"]
[WhiteElo "2194"]
[BlackElo "2215"]
[Result "1-0"]
[Round "01"]
[TimeControl "180+1"]
[Date "2022.02.15"]
[WhiteClock "0:00:25"]
[BlackClock "0:01:05"]

1. d4 {[%clk 0:02:58]}  d6 {[%clk 0:02:58]} 2. c4 {[%clk 0:02:57]}  g6 {[%clk 0:02:58]} 3. Nc3 {[%clk 0:02:57]}  Bg7 {[%clk 0:02:58]} 4. e4 {[%clk 0:02:58]}  Nf6 {[%clk 0:02:55]} 5. Nf3 {[%clk 0:02:59]}  O-O {[%clk 0:02:55]} 6. Be2 {[%clk 0:02:59]}  Bg4 {[%clk 0:02:55]} 7. O-O {[%clk 0:02:57]}  Nfd7 {[%clk 0:02:55]} 8. Be3 {[%clk 0:02:55]}  c5 {[%clk 0:02:54]} 9. h3 {[%clk 0:02:53]}  Bxf3 {[%clk 0:02:53]} 10. Bxf3 {[%clk 0:02:54]}  cxd4 {[%clk 0:02:53]} 11. Bxd4 {[%clk 0:02:55]}  Bxd4 {[%clk 0:02:53]} 12. Qxd4 {[%clk 0:02:55]}  Nc6 {[%clk 0:02:53]} 13. Qd2 {[%clk 0:02:50]}  Nc5 {[%clk 0:02:52]} 14. Be2 {[%clk 0:02:42]}  a5 {[%clk 0:02:51]} 15. f4 {[%clk 0:02:41]}  a4 {[%clk 0:02:48]} 16. Rab1 {[%clk 0:02:40]}  Qa5 {[%clk 0:02:47]} 17. Rfd1 {[%clk 0:02:32]}  Rfd8 {[%clk 0:02:46]} 18. Qe3 {[%clk 0:02:26]}  Nb4 {[%clk 0:02:36]} 19. Rd2 {[%clk 0:02:18]}  Rac8 {[%clk 0:02:31]} 20. Rbd1 {[%clk 0:02:18]}  a3 {[%clk 0:02:31]} 21. b3 {[%clk 0:02:17]}  Kg7 {[%clk 0:02:25]} 22. e5 {[%clk 0:02:17]}  Ne6 {[%clk 0:02:06]} 23. exd6 {[%clk 0:02:14]}  exd6 {[%clk 0:02:06]} 24. Rxd6 {[%clk 0:02:12]}  Rxd6 {[%clk 0:02:05]} 25. Rxd6 {[%clk 0:02:13]}  Rd8 {[%clk 0:01:59]} 26. Rxd8 {[%clk 0:01:35]}  Qxd8 {[%clk 0:01:59]} 27. Kf2 {[%clk 0:01:19]}  Qf6 {[%clk 0:01:57]} 28. g3 {[%clk 0:01:16]}  Qd4 {[%clk 0:01:50]} 29. Qxd4+ {[%clk 0:01:06]}  Nxd4 {[%clk 0:01:49]} 30. g4 {[%clk 0:01:02]}  f5 {[%clk 0:01:46]} 31. Ke3 {[%clk 0:01:01]}  Ndc6 {[%clk 0:01:38]} 32. gxf5 {[%clk 0:00:51]}  gxf5 {[%clk 0:01:38]} 33. Bd3 {[%clk 0:00:49]}  Kg6 {[%clk 0:01:36]} 34. Bb1 {[%clk 0:00:49]}  Kf6 {[%clk 0:01:31]} 35. Nb5 {[%clk 0:00:49]}  Ne7 {[%clk 0:01:21]} 36. Nxa3 {[%clk 0:00:48]}  Ng6 {[%clk 0:01:21]} 37. Nb5 {[%clk 0:00:48]}  Na6 {[%clk 0:01:14]} 38. Nd6 {[%clk 0:00:47]}  Nc5 {[%clk 0:01:11]} 39. Nxf5 {[%clk 0:00:45]}  Ne6 {[%clk 0:01:10]} 40. Nd6 {[%clk 0:00:42]}  Nexf4 {[%clk 0:01:10]} 41. Bxg6 {[%clk 0:00:38]}  Nxg6 {[%clk 0:01:09]} 42. Nxb7 {[%clk 0:00:39]}  Ke5 {[%clk 0:01:08]} 43. a4 {[%clk 0:00:37]}  Nf4 {[%clk 0:01:08]} 44. a5 {[%clk 0:00:34]}  Ne6 {[%clk 0:01:08]} 45. b4 {[%clk 0:00:26]}  h5 {[%clk 0:01:06]} 46. a6 {[%clk 0:00:24]}  Nc7 {[%clk 0:01:05]} 47. b5 {[%clk 0:00:25]} 1-0


[Site "https://www.chess.com"]

[Event "Titled Tuesday Blitz February 15 Early 2022"]
[White "Manukyan, Artyom"]
[Black "Winkels, Marcel"]
[WhiteFideId "13305786"]
[BlackFideId "1003887"]
[WhiteElo "2034"]
[BlackElo "1900"]
[Result "1/2-1/2"]
[Round "01"]
[TimeControl "180+1"]
[Date "2022.02.15"]
[WhiteClock "0:00:11"]
[BlackClock "0:00:04"]

1. Nf3 {[%clk 0:02:58]}  Nf6 {[%clk 0:02:58]} 2. c4 {[%clk 0:02:56]}  g6 {[%clk 0:02:55]} 3. g3 {[%clk 0:02:56]}  Bg7 {[%clk 0:02:55]} 4. Bg2 {[%clk 0:02:57]}  O-O {[%clk 0:02:53]} 5. O-O {[%clk 0:02:58]}  c6 {[%clk 0:02:53]} 6. d4 {[%clk 0:02:58]}  d5 {[%clk 0:02:52]} 7. b3 {[%clk 0:02:54]}  Ne4 {[%clk 0:02:42]} 8. Bb2 {[%clk 0:02:52]}  Bf5 {[%clk 0:02:37]} 9. Nh4 {[%clk 0:02:51]}  Bc8 {[%clk 0:02:27]} 10. Nd2 {[%clk 0:02:49]}  Nxd2 {[%clk 0:02:23]} 11. Qxd2 {[%clk 0:02:50]}  dxc4 {[%clk 0:02:20]} 12. bxc4 {[%clk 0:02:50]}  Nd7 {[%clk 0:02:20]} 13. e4 {[%clk 0:02:47]}  Nb6 {[%clk 0:02:19]} 14. Rac1 {[%clk 0:02:46]}  Qc7 {[%clk 0:02:01]} 15. Rfd1 {[%clk 0:02:36]}  Bg4 {[%clk 0:01:59]} 16. Nf3 {[%clk 0:02:33]}  Rad8 {[%clk 0:01:52]} 17. h3 {[%clk 0:02:32]}  Bxf3 {[%clk 0:01:51]} 18. Bxf3 {[%clk 0:02:33]}  c5 {[%clk 0:01:47]} 19. d5 {[%clk 0:02:30]}  Bxb2 {[%clk 0:01:46]} 20. Qxb2 {[%clk 0:02:31]}  f6 {[%clk 0:01:38]} 21. Bg4 {[%clk 0:02:28]}  Qe5 {[%clk 0:01:37]} 22. Be6+ {[%clk 0:02:23]}  Kg7 {[%clk 0:01:36]} 23. Qe2 {[%clk 0:02:16]}  Na4 {[%clk 0:01:29]} 24. f4 {[%clk 0:02:09]}  Qb2 {[%clk 0:01:13]} 25. Rc2 {[%clk 0:01:40]}  Qb4 {[%clk 0:01:11]} 26. Qd3 {[%clk 0:01:34]}  Nb2 {[%clk 0:01:07]} 27. Rxb2 {[%clk 0:01:15]}  Qxb2 {[%clk 0:01:05]} 28. Rd2 {[%clk 0:01:16]}  Qc1+ {[%clk 0:01:04]} 29. Kg2 {[%clk 0:01:14]}  Rb8 {[%clk 0:00:58]} 30. Rc2 {[%clk 0:01:14]}  Qa1 {[%clk 0:00:54]} 31. h4 {[%clk 0:01:14]}  h5 {[%clk 0:00:48]} 32. Qf3 {[%clk 0:01:06]}  Qd4 {[%clk 0:00:47]} 33. f5 {[%clk 0:00:56]}  Qe5 {[%clk 0:00:36]} 34. fxg6 {[%clk 0:00:54]}  Kxg6 {[%clk 0:00:33]} 35. Bf5+ {[%clk 0:00:54]}  Kg7 {[%clk 0:00:33]} 36. Qxh5 {[%clk 0:00:53]}  Rh8 {[%clk 0:00:25]} 37. Qg6+ {[%clk 0:00:48]}  Kf8 {[%clk 0:00:24]} 38. Rf2 {[%clk 0:00:48]}  Rg8 {[%clk 0:00:18]} 39. Qh6+ {[%clk 0:00:46]}  Ke8 {[%clk 0:00:18]} 40. g4 {[%clk 0:00:38]}  Kd8 {[%clk 0:00:16]} 41. h5 {[%clk 0:00:29]}  Kc7 {[%clk 0:00:16]} 42. Qf4 {[%clk 0:00:30]}  Qxf4 {[%clk 0:00:15]} 43. Rxf4 {[%clk 0:00:31]}  Kd6 {[%clk 0:00:14]} 44. Kf3 {[%clk 0:00:24]}  b5 {[%clk 0:00:14]} 45. cxb5 {[%clk 0:00:22]}  Rxb5 {[%clk 0:00:13]} 46. h6 {[%clk 0:00:23]}  c4 {[%clk 0:00:11]} 47. h7 {[%clk 0:00:23]}  Rh8 {[%clk 0:00:09]} 48. Ke3 {[%clk 0:00:23]}  Rb2 {[%clk 0:00:08]} 49. Kd4 {[%clk 0:00:16]}  Rxa2 {[%clk 0:00:07]} 50. Kxc4 {[%clk 0:00:17]}  Ra4+ {[%clk 0:00:06]} 51. Kb3 {[%clk 0:00:16]}  Rd4 {[%clk 0:00:06]} 52. Kc3 {[%clk 0:00:16]}  Rd1 {[%clk 0:00:05]} 53. Rf2 {[%clk 0:00:16]}  Rc1+ {[%clk 0:00:04]} 54. Kb2 {[%clk 0:00:15]}  Rc7 {[%clk 0:00:02]} 55. Rf3 {[%clk 0:00:15]}  a5 {[%clk 0:00:02]} 56. Ra3 {[%clk 0:00:15]}  Rb7+ {[%clk 0:00:03]} 57. Kc3 {[%clk 0:00:15]}  Rb5 {[%clk 0:00:03]} 58. Kc4 {[%clk 0:00:15]}  Rc5+ {[%clk 0:00:04]} 59. Kd4 {[%clk 0:00:15]}  Rb5 {[%clk 0:00:04]} 60. Kc4 {[%clk 0:00:11]}  Rb4+ {[%clk 0:00:04]} 61. Kc3 {[%clk 0:00:11]}  Rb5 {[%clk 0:00:04]} 62. Kc4 {[%clk 0:00:11]} 1/2-1/2


[Site "https://www.chess.com"]